bitfinex/quotes_SOLUSD_20250421
["timestamp","ask_amount","ask_price","bid_price","bid_amount"]
[1745208288083,0.03,139.39,139.38,268.46109109]
[1745208290686,0.03,139.39,139.38,260.74216157]
[1745208290886,0.03,139.39,139.38,268.46109109]
[1745208299893,0.03,139.39,139.38,268.31892952]
[1745208300396,0.03,139.39,139.38,260.6]
[1745208300781,0.03,139.39,139.38,268.31892952]
[1745208311205,0.03,139.39,139.38,268.46109109]
[1745208311394,0.03,139.39,139.38,260.6]
[1745208311588,0.03,139.39,139.38,268.46109109]
[1745208311990,0.03,139.39,139.38,260.6]
[1745208312185,0.03,139.39,139.38,268.31892952]
[1745208313103,0.03,139.39,139.38,268.46109109]
[1745208313288,0.03,139.39,139.38,260.6]
[1745208313801,0.03,139.39,139.38,268.31892952]
[1745208314193,0.03,139.39,139.38,268.46109109]
[1745208320911,0.03,139.39,139.38,268.31892952]
[1745208321902,0.03,139.39,139.38,260.6]
[1745208322103,0.03,139.39,139.38,268.31892952]
[1745208323723,0.03,139.39,139.38,260.6]
[1745208324103,0.03,139.39,139.38,245.76]
[1745208324298,0.03,139.39,139.38,260.6]
[1745208330915,0.03,139.39,139.38,268.31892952]
[1745208333914,0.03,139.39,139.38,260.6]
[1745208334114,0.03,139.39,139.38,268.31892952]
[1745208352488,0.03,139.39,139.38,260.6]
[1745208352697,0.03,139.39,139.38,268.31892952]
[1745208352992,0.03,139.39,139.38,260.6]
[1745208353172,0.03,139.39,139.38,268.31892952]
[1745208362800,0.03,139.39,139.38,260.58]
[1745208363397,0.03,139.39,139.38,268.29892952]
[1745208363578,0.03,139.39,139.38,268.44109109]
[1745208365579,0.03,139.39,139.38,268.29892952]
[1745208371400,0.03,139.39,139.38,260.58]
[1745208374991,0.03,139.39,139.38,268.29892952]
[1745208375391,0.03,139.39,139.38,260.58]
[1745208375899,0.03,139.39,139.38,268.44109109]
[1745208376204,0.03,139.39,139.38,260.58]
[1745208378410,0.03,139.39,139.38,268.29892952]
[1745208379317,0.03,139.39,139.38,260.58]
[1745208388417,0.03,139.39,139.38,268.29892952]
[1745208388999,0.03,139.39,139.38,260.58]
[1745208389193,0.03,139.39,139.38,268.29892952]
[1745208394197,0.03,139.39,139.38,268.44109109]
[1745208395028,0.03,139.39,139.38,268.29892952]
[1745208395901,0.03,139.39,139.38,260.58]
[1745208399216,0.03,139.39,139.38,268.44109109]
[1745208399818,0.03,139.39,139.38,294.44109109]
[1745208400110,13.41112952,139.44,139.39,7.71892952]
[1745208401017,7.71892952,139.44,139.39,7.71892952]
[1745208402022,7.71892952,139.44,139.38,294.44109109]
[1745208402410,7.71892952,139.44,139.39,7.71892952]
[1745208408745,7.71892952,139.44,139.38,294.29892952]
[1745208408920,7.71892952,139.43,139.38,268.29892952]
[1745208409120,7.71892952,139.44,139.38,268.29892952]
[1745208409734,7.71892952,139.43,139.39,14.8]
[1745208409946,7.71892952,139.44,139.39,14.8]
[1745208411135,7.71892952,139.44,139.38,253.47892952]
[1745208411341,7.71892952,139.43,139.4,14.8]
[1745208411830,7.71892952,139.44,139.4,14.8]
[1745208414839,7.71892952,139.44,139.41,245.66]
[1745208419734,7.71892952,139.44,139.42,14.8]
[1745208422052,7.71892952,139.43,139.42,14.8]
[1745208422233,7.71892952,139.43,139.41,245.66]
[1745208422539,7.71892952,139.42,139.41,245.66]
[1745208422843,26.0,139.44,139.41,260.46]
[1745208423058,7.71892952,139.42,139.41,260.46]
[1745208423843,18.64964886,139.44,139.41,260.46]
[1745208424045,7.71892952,139.42,139.41,260.46]
[1745208424626,133.46284886,139.46,139.41,260.46]
[1745208424944,7.71892952,139.43,139.41,260.46]
[1745208425840,7.71892952,139.44,139.41,260.46]
[1745208426051,8.29571912,139.45,139.41,260.46]
[1745208426653,7.71892952,139.44,139.41,260.46]
[1745208429357,0.5767896,139.45,139.41,260.46]
[1745208429559,7.71892952,139.44,139.41,260.46]
[1745208431167,0.5767896,139.45,139.41,260.46]
[1745208431342,7.71892952,139.44,139.41,260.46]
[1745208431944,7.71892952,139.43,139.41,260.46]
[1745208434150,7.71892952,139.42,139.41,260.46]
[1745208435643,7.71892952,139.42,139.41,245.66]
[1745208435850,7.71892952,139.42,139.41,260.46]
[1745208436145,7.71892952,139.42,139.41,245.66]
[1745208436340,7.71892952,139.42,139.41,260.46]
[1745208439863,18.64964886,139.44,139.41,260.46]
[1745208440062,7.71892952,139.42,139.41,260.46]
[1745208440856,7.71892952,139.42,139.41,245.66]
[1745208441069,7.71892952,139.42,139.41,260.46]
[1745208441862,18.64964886,139.44,139.41,260.46]
[1745208442057,7.71892952,139.42,139.41,260.46]
[1745208451069,0.5767896,139.45,139.41,260.46]
[1745208451367,7.71892952,139.43,139.41,260.46]
[1745208451873,7.71892952,139.42,139.41,260.46]
[1745208452190,7.71892952,139.44,139.41,260.46]
[1745208452362,7.71892952,139.43,139.41,260.46]
[1745208454376,7.71892952,139.42,139.41,260.46]
[1745208456464,7.71892952,139.43,139.41,260.46]
[1745208459581,7.71892952,139.43,139.41,260.46]
[1745208471183,7.71892952,139.44,139.41,260.46]
[1745208473680,0.5767896,139.45,139.41,260.46]
[1745208473882,8.29571912,139.45,139.41,260.46]
[1745208474775,0.5767896,139.45,139.41,260.46]
[1745208474969,8.29571912,139.45,139.41,260.46]
[1745208475183,8.29571912,139.45,139.42,14.78]
[1745208477692,0.5767896,139.45,139.42,14.78]
[1745208487206,8.29571912,139.45,139.42,14.78]
[1745208489407,8.29571912,139.45,139.43,245.66]
[1745208489721,0.5767896,139.45,139.43,245.66]
[1745208490011,8.29571912,139.45,139.43,245.66]
[1745208494187,8.29571912,139.45,139.44,14.78]
[1745208494399,0.5767896,139.45,139.44,14.78]
[1745208497013,8.29571912,139.45,139.44,14.78]
[1745208497717,0.5767896,139.45,139.44,14.78]
[1745208502737,0.5767896,139.45,139.44,40.78]
[1745208503036,0.5767896,139.45,139.44,48.49892952]
[1745208503502,0.5767896,139.45,139.44,22.49892952]
[1745208503707,0.5767896,139.45,139.44,14.76]
[1745208509337,8.29571912,139.45,139.44,14.76]
[1745208520041,8.29571912,139.45,139.43,245.66]
[1745208520242,7.71892952,139.44,139.43,245.66]
[1745208520540,7.71892952,139.44,139.43,260.42]
[1745208521745,7.71892952,139.44,139.43,245.66]
[1745208522040,7.71892952,139.44,139.43,260.44]
[1745208525748,7.71892952,139.44,139.43,245.66]
[1745208525954,26.36857838,139.44,139.43,260.42]
[1745208527037,145.35800134,139.44,139.43,245.66]
[1745208527252,26.0,139.41,139.38,0.063]
[1745208527445,26.0,139.41,139.39,14.76]
[1745208527631,26.0,139.4,139.39,14.76]
[1745208527831,27.5042,139.42,139.39,14.76]
[1745208528156,26.0,139.41,139.39,14.76]
[1745208528657,7.71892952,139.4,139.39,14.76]
[1745208528957,80.8,139.43,139.39,14.76]
[1745208529165,7.71892952,139.41,139.39,14.76]
[1745208530052,7.71892952,139.42,139.39,14.76]
[1745208530452,7.71892952,139.41,139.39,14.76]
[1745208531053,7.71892952,139.43,139.39,14.76]
[1745208531853,7.71892952,139.44,139.39,16.2951]
[1745208532059,7.71892952,139.44,139.39,24.01402952]
[1745208532265,0.5767896,139.45,139.39,24.01402952]
[1745208532564,0.5767896,139.45,139.4,14.01922952]
[1745208532754,0.5767896,139.45,139.41,7.71892952]
[1745208533053,0.5767896,139.45,139.41,0.14216157]
[1745208533257,0.5767896,139.45,139.41,7.86109109]
[1745208533943,0.5767896,139.45,139.42,7.71892952]
[1745208536449,0.5767896,139.45,139.41,7.86109109]
[1745208536864,0.5767896,139.45,139.42,7.71892952]
[1745208537447,0.5767896,139.45,139.43,245.68]
[1745208537645,0.5767896,139.45,139.44,14.76]
[1745208540873,0.5767896,139.45,139.44,22.47892952]
[1745208541043,0.5767896,139.45,139.44,14.76]
[1745208553374,8.29571912,139.45,139.44,14.76]
[1745208558569,0.5767896,139.45,139.44,14.76]
[1745208567879,8.29571912,139.45,139.43,245.68]
[1745208568083,0.5767896,139.45,139.44,14.74]
[1745208569175,8.29571912,139.45,139.44,14.74]
[1745208570290,0.5767896,139.45,139.44,14.74]
[1745208584698,0.5767896,139.45,139.44,260.36]
[1745208604512,0.03,139.48,139.45,0.14216157]
[1745208604691,0.03,139.48,139.47,7.86109109]
[1745208604891,0.03,139.48,139.47,33.86109109]
[1745208606819,0.03,139.48,139.47,39.68307649]
[1745208607009,0.03,139.48,139.47,33.86109109]
[1745208610493,0.03,139.48,139.47,7.71892952]
[1745208610694,0.03,139.48,139.47,14.72]
[1745208611006,0.03,139.48,139.44,247.1688]
[1745208611208,0.03,139.48,139.47,14.72]
[1745208618111,0.03,139.48,139.44,245.62]
[1745208618314,0.03,139.48,139.45,14.72]
[1745208627521,0.03,139.48,139.46,245.56]
[1745208634044,7.71892952,139.47,139.46,245.56]
[1745208634229,7.71892952,139.47,139.46,260.28]
[1745208634436,26.36857838,139.47,139.46,260.28]
[1745208640549,26.0,139.43,139.39,245.663]
[1745208640839,7.71892952,139.4,139.39,245.663]
[1745208641019,7.71892952,139.4,139.39,260.383]
[1745208647932,26.0,139.41,139.39,260.383]
[1745208648130,7.71892952,139.4,139.39,260.383]
[1745208656244,26.0,139.41,139.39,260.383]
[1745208656442,7.71892952,139.4,139.39,260.383]
[1745208659759,7.71892952,139.4,139.39,245.663]
[1745208659955,7.71892952,139.4,139.39,260.383]
[1745208661041,26.0,139.41,139.39,260.383]
[1745208661359,7.71892952,139.4,139.39,260.383]
[1745208663864,7.71892952,139.4,139.39,14.783]
[1745208664461,26.0,139.41,139.39,14.783]
[1745208664655,7.71892952,139.4,139.39,14.783]
[1745208671867,7.71892952,139.44,139.39,14.783]
[1745208672054,7.71892952,139.45,139.39,22.50192952]
[1745208672556,7.71892952,139.44,139.39,14.783]
[1745208672757,7.71892952,139.44,139.39,22.50192952]
[1745208675574,26.0,139.46,139.39,22.50192952]
[1745208675768,7.71892952,139.44,139.39,22.50192952]
[1745208677272,7.71892952,139.45,139.4,7.71892952]
[1745208677450,7.71892952,139.45,139.4,14.38262952]
[1745208678872,7.71892952,139.46,139.41,7.71892952]
[1745208679052,7.71892952,139.47,139.41,7.71892952]
[1745208679675,7.71892952,139.46,139.41,7.71892952]
[1745208679863,7.71892952,139.45,139.4,6.6637]
[1745208680048,7.71892952,139.45,139.4,14.38262952]
[1745208681577,26.0,139.47,139.4,14.38262952]
[1745208681765,7.71892952,139.45,139.4,14.38262952]
[1745208682081,7.71892952,139.46,139.4,14.38262952]
[1745208684477,7.71892952,139.46,139.41,7.71892952]
[1745208687583,7.71892952,139.44,139.39,22.64409109]
[1745208689495,7.71892952,139.44,139.4,245.64]
[1745208689792,7.71892952,139.45,139.4,253.35892952]
[1745208691386,7.71892952,139.45,139.41,14.7]
[1745208692668,7.71892952,139.45,139.4,253.35892952]
[1745208692868,7.71892952,139.44,139.42,14.7]
[1745208694386,7.71892952,139.45,139.42,14.7]
[1745208695087,26.0,139.47,139.42,14.7]
[1745208695088,7.71892952,139.46,139.42,14.7]
[1745208696280,26.0,139.47,139.42,14.7]
[1745208696473,7.71892952,139.46,139.43,245.66]
[1745208698973,7.71892952,139.44,139.43,245.66]
[1745208706304,7.71892952,139.45,139.43,245.66]
[1745208707402,7.71892952,139.46,139.43,245.66]
[1745208708299,26.0,139.47,139.43,245.66]
[1745208708501,7.71892952,139.45,139.43,245.66]
[1745208710177,44.64964886,139.47,139.43,245.66]
[1745208710501,7.71892952,139.44,139.43,245.66]
[1745208710710,44.64964886,139.47,139.43,245.66]
[1745208711006,7.71892952,139.44,139.43,245.66]
[1745208711212,7.71892952,139.44,139.43,260.36]
[1745208723122,84.97475803,139.44,139.43,260.36]
[1745208723335,26.0,139.41,139.39,0.063]
[1745208723627,26.0,139.41,139.4,14.7]
[1745208724726,33.71892952,139.41,139.4,14.7]
[1745208731607,52.36857838,139.41,139.4,14.7]
[1745208732914,52.36857838,139.41,139.39,0.063]
[1745208733230,44.64964886,139.41,139.4,14.7]
[1745208734017,26.0,139.41,139.4,14.7]
[1745208734333,33.71892952,139.41,139.4,14.7]
[1745208743234,52.36857838,139.41,139.4,14.7]
[1745208743424,52.36857838,139.41,139.4,14.68]
[1745208743627,18.64964886,139.4,139.39,0.063]
[1745208743829,26.36857838,139.4,139.39,14.743]
[1745208752655,26.51073995,139.4,139.39,14.743]
[1745208753946,52.51073995,139.4,139.39,14.743]
[1745208757348,33.68434109,139.4,139.39,14.68]
[1745208757550,26.51073995,139.4,139.39,14.68]
[1745208757751,26.51073995,139.4,139.38,0.063]
[1745208757952,52.36857838,139.39,139.38,0.063]
[1745208764254,26.36857838,139.39,139.38,0.063]
[1745208764451,18.64964886,139.35,139.33,0.063]
[1745208764653,26.36857838,139.35,139.33,0.063]
[1745208764854,7.71892952,139.34,139.33,0.063]
[1745208765235,7.71892952,139.34,139.33,14.743]
[1745208774971,44.64964886,139.33,139.31,0.063]
[1745208775280,52.36857838,139.33,139.32,14.743]
[1745208775773,52.51073995,139.33,139.32,14.743]
[1745208779766,33.71892952,139.33,139.32,14.743]
[1745208779984,26.0,139.33,139.32,14.743]
[1745208780271,33.71892952,139.33,139.32,14.743]
[1745208786650,52.36857838,139.33,139.32,14.743]
[1745208786857,59.68794514,139.33,139.32,14.743]
[1745208787057,52.51073995,139.33,139.32,14.743]
[1745208787275,52.36857838,139.33,139.32,14.743]
[1745208789488,52.51073995,139.33,139.32,14.743]
[1745208790478,0.14216157,139.32,139.31,0.063]
[1745208790660,0.14216157,139.32,139.31,14.743]
[1745208790859,7.86109109,139.32,139.31,14.743]
[1745208791479,7.71892952,139.32,139.31,14.743]
[1745208791679,7.86109109,139.32,139.31,14.743]
[1745208792061,15.03881144,139.32,139.31,14.743]
[1745208797585,44.64964886,139.31,139.3,0.063]
[1745208797787,52.36857838,139.31,139.3,14.743]
[1745208797984,33.68897553,139.31,139.3,14.68]
[1745208798190,0.14216157,139.3,139.28,0.063]
[1745208798368,7.86109109,139.3,139.28,0.063]
[1745208799188,15.03984198,139.3,139.28,0.063]
[1745208800186,7.86109109,139.3,139.28,0.063]
[1745208802166,33.71892952,139.3,139.28,0.063]
[1745208804062,52.36857838,139.3,139.28,0.063]
[1745208805180,59.68949084,139.3,139.28,0.063]
[1745208805388,59.68949084,139.3,139.29,14.743]
[1745208805890,59.54732927,139.3,139.29,14.743]
[1745208806094,59.68949084,139.3,139.29,14.743]
[1745208806895,52.51073995,139.3,139.29,14.743]
[1745208808491,33.68949084,139.3,139.29,14.743]
[1745208809193,26.51073995,139.3,139.29,14.743]
[1745208809393,0.14216157,139.28,139.27,0.063]
[1745208809583,52.36857838,139.27,139.26,0.063]
[1745208809782,52.36857838,139.27,139.26,14.743]
[1745208810776,33.71892952,139.27,139.26,14.743]
[1745208811095,33.71892952,139.28,139.26,14.743]
[1745208812195,7.71892952,139.32,139.27,9.37502952]
[1745208812397,7.71892952,139.31,139.27,1.6561]
[1745208812791,33.71892952,139.32,139.27,9.37502952]
[1745208813899,7.71892952,139.31,139.27,1.6561]
[1745208815095,7.71892952,139.3,139.27,1.6561]
[1745208815292,7.71892952,139.3,139.28,245.98]
[1745208815901,26.0,139.32,139.28,245.98]
[1745208816104,7.71892952,139.31,139.28,245.98]
[1745208820405,7.71892952,139.3,139.28,245.98]
[1745208820706,7.71892952,139.3,139.29,14.68]
[1745208836825,7.71892952,139.31,139.29,14.68]
[1745208839325,26.0,139.32,139.29,14.68]
[1745208839510,7.71892952,139.3,139.29,14.68]
[1745208840223,7.71892952,139.31,139.29,14.68]
[1745208841321,33.71892952,139.32,139.29,14.68]
[1745208841616,26.0,139.32,139.29,14.68]
[1745208843815,0.03,139.36,139.31,7.71892952]
[1745208844118,7.71892952,139.35,139.3,7.71892952]
[1745208844921,7.71892952,139.34,139.29,14.68]
[1745208845529,7.71892952,139.34,139.29,22.39892952]
[1745208847509,7.71892952,139.34,139.29,14.68]
[1745208848931,7.71892952,139.34,139.29,22.39892952]
[1745208849119,7.71892952,139.33,139.29,14.68]
[1745208849722,7.71892952,139.34,139.29,14.68]
[1745208850634,7.71892952,139.33,139.29,14.68]
[1745208851912,7.71892952,139.31,139.29,14.68]
[1745208852434,7.71892952,139.3,139.29,14.68]
[1745208852823,7.71892952,139.31,139.29,14.68]
[1745208853752,7.71892952,139.3,139.29,14.68]
[1745208859437,7.71892952,139.31,139.29,14.68]
[1745208861336,7.71892952,139.3,139.29,14.68]
[1745208864244,7.71892952,139.31,139.29,14.68]
[1745208867335,26.0,139.33,139.29,14.68]
[1745208867535,7.71892952,139.31,139.29,14.68]
[1745208868150,26.0,139.33,139.29,14.68]
[1745208868350,33.71892952,139.33,139.29,14.68]
[1745208869250,7.71892952,139.32,139.29,14.68]
[1745208874452,26.0,139.33,139.3,7.71892952]
[1745208874633,0.03,139.36,139.3,7.71892952]
[1745208874836,33.71892952,139.35,139.3,7.71892952]
[1745208875658,7.71892952,139.33,139.29,14.68]
[1745208876036,7.71892952,139.32,139.29,14.68]
[1745208878549,7.71892952,139.3,139.29,14.68]
[1745208885166,33.71892952,139.31,139.29,14.68]
[1745208886166,7.71892952,139.3,139.29,14.68]
[1745208887874,26.0,139.31,139.29,14.68]
[1745208890688,7.71892952,139.3,139.29,14.68]
[1745208892889,33.71892952,139.31,139.29,14.68]
[1745208894587,26.0,139.31,139.29,14.68]
[1745208901301,7.71892952,139.3,139.29,14.68]
[1745208904917,33.71892952,139.31,139.29,14.68]
[1745208905405,26.0,139.31,139.29,14.68]
[1745208908699,33.71892952,139.31,139.29,14.68]
[1745208912002,33.71892952,139.31,139.3,14.64]
[1745208935561,0.14216157,139.29,139.28,14.64]
[1745208935856,64.73680917,139.29,139.28,14.64]
[1745208936064,26.0,139.27,139.26,0.063]
[1745208936231,52.51073995,139.27,139.26,14.703]
[1745208936550,0.14216157,139.26,139.25,260.643]
[1745208938353,7.86109109,139.26,139.25,260.643]
[1745208940451,44.64964886,139.24,139.23,0.063]
[1745208940649,52.36857838,139.24,139.23,0.063]
[1745208940839,52.51073995,139.24,139.23,0.063]
[1745208942456,56.0066166,139.24,139.23,0.063]
[1745208943858,52.51073995,139.24,139.23,0.063]
[1745208944961,33.71892952,139.24,139.23,0.063]
[1745208945257,33.71892952,139.24,139.23,14.703]
[1745208948535,7.71892952,139.25,139.23,14.703]
[1745208948739,26.0,139.26,139.23,14.703]
[1745208949042,11.26004752,139.32,139.25,7.71892952]
[1745208949245,11.26004752,139.32,139.23,14.703]
[1745208949246,11.26004752,139.32,139.26,7.71892952]
[1745208949453,26.0,139.3,139.25,7.71892952]
[1745208949660,26.0,139.29,139.25,7.71892952]
[1745208950762,26.0,139.29,139.24,14.26632952]
[1745208950763,33.71892952,139.29,139.24,14.26632952]
[1745208951560,7.71892952,139.27,139.23,14.703]
[1745208952056,26.82744532,139.32,139.23,14.703]
[1745208952057,7.71892952,139.26,139.23,14.703]
[1745208954265,7.71892952,139.24,139.23,14.703]
[1745208954868,33.71892952,139.25,139.23,14.703]
[1745208955365,7.71892952,139.24,139.23,14.703]
[1745208956947,7.21892952,139.24,139.23,14.703]
[1745208959543,25.86857838,139.24,139.23,0.063]
[1745208959739,44.64964886,139.22,139.21,0.063]
[1745208959945,52.36857838,139.22,139.21,14.703]
[1745208960347,33.71892952,139.22,139.21,14.703]
[1745208961970,26.0,139.22,139.21,14.703]
[1745208962265,33.71892952,139.22,139.21,14.703]
[1745208965575,52.36857838,139.22,139.21,14.703]
[1745208970574,26.0,139.22,139.21,14.703]
[1745208970776,33.71892952,139.22,139.21,14.703]
[1745208971578,52.36857838,139.22,139.21,14.703]
[1745208977188,33.71892952,139.22,139.21,14.703]
[1745208985592,0.03,139.29,139.22,1.5479]
[1745208985790,0.03,139.29,139.22,9.26682952]
[1745208985971,7.71892952,139.26,139.22,1.5479]
[1745208987188,7.71892952,139.26,139.23,1.79203775]
[1745208987393,33.71892952,139.27,139.23,1.79203775]
[1745208988272,33.71892952,139.27,139.22,9.26682952]
[1745208989088,33.71892952,139.27,139.23,246.08]
[1745208991402,26.0,139.27,139.23,246.08]
[1745208991572,33.71892952,139.27,139.23,246.08]
[1745208994701,26.0,139.27,139.23,246.08]
[1745208996097,26.0,139.27,139.23,253.79892952]
[1745208996325,26.03,139.29,139.25,7.71892952]
[1745208996606,26.03,139.29,139.26,14.62]
[1745208997283,26.03,139.29,139.26,22.33892952]
[1745208997483,26.03,139.29,139.26,14.62]
[1745209000705,33.74892952,139.29,139.26,14.62]
[1745209001788,7.71892952,139.28,139.26,14.62]
[1745209002484,7.71892952,139.27,139.26,14.62]
[1745209011387,26.36857838,139.27,139.26,14.62]
[1745209012003,26.36857838,139.27,139.26,15.62]
[1745209012796,7.71892952,139.27,139.26,15.62]
[1745209015913,26.0,139.24,139.23,246.08]
[1745209016117,52.51073995,139.24,139.23,260.7]
[1745209016800,0.14216157,139.23,139.22,14.62]
[1745209017118,7.86109109,139.23,139.22,14.62]
[1745209024719,26.51073995,139.23,139.22,14.62]
[1745209024922,26.14216157,139.21,139.2,14.62]
[1745209025115,83.38645803,139.21,139.2,14.62]
[1745209026802,83.38645803,139.21,139.19,14.683]
[1745209027000,38.73680917,139.2,139.19,14.683]
[1745209027216,64.73680917,139.2,139.19,14.683]
[1745209027399,83.38645803,139.2,139.19,14.683]
[1745209027915,0.14216157,139.19,139.18,14.683]
[1745209028112,32.21909289,139.19,139.18,14.683]
[1745209028513,32.21909289,139.19,139.17,14.683]
[1745209028698,26.36857838,139.18,139.17,14.683]
[1745209028904,26.51073995,139.18,139.15,0.063]
[1745209029113,26.36857838,139.17,139.15,0.063]
[1745209029920,29.93390806,139.17,139.15,0.063]
[1745209030117,26.36857838,139.17,139.15,0.063]
[1745209030324,26.36857838,139.17,139.13,0.063]
[1745209030325,26.0,139.14,139.13,0.063]
[1745209030504,33.86109109,139.14,139.13,0.063]
[1745209031532,33.71892952,139.14,139.13,0.063]
[1745209035317,33.71892952,139.14,139.13,14.683]
[1745209037228,52.51073995,139.14,139.13,14.683]
[1745209038026,59.69774584,139.14,139.13,14.683]
[1745209038328,52.51073995,139.14,139.13,14.683]
[1745209048656,52.51073995,139.14,139.1,0.063]
[1745209048657,26.0,139.11,139.1,0.063]
[1745209048849,44.64964886,139.08,139.07,14.683]
[1745209049018,52.36857838,139.08,139.07,14.683]
[1745209049334,44.64964886,139.08,139.06,14.62]
[1745209049527,52.36857838,139.08,139.06,14.62]
[1745209049727,26.51073995,139.07,139.06,14.62]
[1745209049923,26.0,139.04,139.02,14.683]
[1745209050130,26.51073995,139.03,139.02,14.683]
[1745209050326,26.36857838,139.03,139.02,14.683]
[1745209050552,26.51073995,139.03,139.02,14.683]
[1745209050924,44.64964886,139.02,139.01,15.26]
[1745209051121,52.36857838,139.02,139.01,15.26]
[1745209051350,107.31073995,139.02,139.01,15.26]
[1745209052155,114.50394956,139.02,139.01,15.26]
[1745209052339,107.31073995,139.02,139.01,15.26]
[1745209052851,99.59181043,139.02,139.01,15.26]
[1745209053061,7.71892952,139.02,139.01,15.26]
[1745209053234,26.0,139.03,139.01,15.26]
[1745209053614,7.71892952,139.02,139.01,15.26]
[1745209054721,7.71892952,139.07,139.01,24.63762952]
[1745209054922,7.71892952,139.06,139.01,16.9187]
[1745209055138,33.71892952,139.06,139.01,16.9187]
[1745209055340,12.11770935,139.06,139.02,246.36]
[1745209056049,12.11770935,139.04,139.02,246.36]
[1745209056421,38.11770935,139.05,139.02,246.36]
[1745209056621,26.0,139.05,139.02,246.36]
[1745209057028,38.11770935,139.05,139.02,246.36]
[1745209057449,26.0,139.05,139.02,246.36]
[1745209057621,12.11770935,139.04,139.02,246.36]
[1745209058246,38.11770935,139.05,139.02,246.36]
[1745209058445,26.0,139.05,139.02,246.36]
[1745209058751,38.11770935,139.05,139.02,246.36]
[1745209062053,12.11770935,139.04,139.02,246.36]
[1745209062460,12.11770935,139.03,139.02,246.36]
[1745209064457,12.11770935,139.04,139.02,246.36]
[1745209064631,12.11770935,139.03,139.02,246.36]
[1745209065853,12.11770935,139.04,139.02,246.36]
[1745209066225,38.11770935,139.04,139.02,246.36]
[1745209068554,26.0,139.04,139.02,246.36]
[1745209068758,38.11770935,139.04,139.02,246.36]
[1745209069862,12.11770935,139.03,139.02,246.36]
[1745209072341,7.2201181,139.08,139.02,246.36]
[1745209072342,38.11770935,139.06,139.02,246.36]
[1745209072656,12.11770935,139.05,139.02,246.36]
[1745209075259,7.7557543,139.05,139.02,246.36]
[1745209076548,26.0,139.06,139.02,246.36]
[1745209076749,7.7557543,139.05,139.02,246.36]
[1745209077048,26.0,139.06,139.02,246.36]
[1745209077351,7.7557543,139.05,139.02,246.36]
[1745209079844,26.0,139.06,139.02,246.36]
[1745209080057,33.7557543,139.06,139.02,246.36]
[1745209080363,0.03,139.08,139.03,9.3141543]
[1745209080557,7.7857543,139.08,139.03,1.5584]
[1745209080953,0.03,139.08,139.03,1.5584]
[1745209081157,33.7857543,139.08,139.03,1.5584]
[1745209081851,7.7557543,139.07,139.03,1.5584]
[1745209083842,0.03,139.08,139.04,7.7557543]
[1745209084049,0.03,139.08,139.06,7.7557543]
[1745209084263,0.03,139.08,139.07,15.28]
[1745209085155,0.03,139.08,139.07,23.0357543]
[1745209085861,0.03,139.09,139.08,0.14216157]
[1745209086061,0.03,139.09,139.08,26.54756473]
[1745209087264,0.03,139.09,139.08,30.89034306]
[1745209088967,0.03,139.09,139.08,12.2406942]
[1745209089157,0.03,139.09,139.08,12.09853263]
[1745209089460,0.03,139.09,139.07,130.0886]
[1745209089668,0.03,139.09,139.07,142.18713263]
[1745209090068,0.03,139.09,139.07,116.18713263]
[1745209090259,0.03,139.09,139.08,12.09853263]
[1745209090455,0.03,139.09,139.07,116.18713263]
[1745209091169,0.03,139.09,139.07,15.28]